bitfinex/quotes_BTCUSD_20250523
["timestamp","ask_amount","ask_price","bid_price","bid_amount"]
[1748014704385,0.41407049,109570.0,109560.0,0.002]
[1748014704559,0.77438666,109570.0,109560.0,0.002]
[1748014704756,0.77638666,109570.0,109560.0,0.002]
[1748014706190,0.41707049,109570.0,109560.0,0.002]
[1748014706395,0.34820368,109570.0,109560.0,0.002]
[1748014707423,0.34820368,109570.0,109560.0,0.27552]
[1748014707424,0.36274453,109570.0,109560.0,0.27552]
[1748014707875,0.34820368,109570.0,109560.0,0.27552]
[1748014709892,0.36274453,109570.0,109560.0,0.002]
[1748014710102,0.36274453,109570.0,109560.0,0.27556]
[1748014710781,0.45226604,109570.0,109560.0,0.002]
[1748014711102,0.45226604,109570.0,109560.0,0.27556]
[1748014711269,0.7220607,109570.0,109560.0,0.002]
[1748014712065,0.36274453,109570.0,109560.0,0.002]
[1748014714748,0.7220607,109570.0,109560.0,0.002]
[1748014714956,0.74691973,109570.0,109560.0,0.002]
[1748014715160,1.41580356,109570.0,109560.0,0.002]
[1748014715521,1.41580356,109570.0,109550.0,0.00015151]
[1748014715522,0.27871647,109560.0,109550.0,0.00015151]
[1748014715732,1.69045437,109560.0,109550.0,0.00015151]
[1748014715943,1.32625013,109550.0,109540.0,0.002]
[1748014716144,1.1734372,109550.0,109540.0,0.002]
[1748014716354,0.21543514,109510.0,109500.0,4e-05]
[1748014716569,0.72899687,109510.0,109500.0,4e-05]
[1748014717254,0.3696807,109510.0,109500.0,4e-05]
[1748014717860,0.36977291,109510.0,109500.0,4e-05]
[1748014718087,0.37177291,109510.0,109500.0,4e-05]
[1748014718266,0.37277291,109510.0,109500.0,4e-05]
[1748014719272,0.76931321,109510.0,109500.0,4e-05]
[1748014719492,1.21135115,109510.0,109500.0,4e-05]
[1748014721503,0.71277291,109510.0,109500.0,4e-05]
[1748014722359,0.72277291,109510.0,109500.0,4e-05]
[1748014723144,0.71277291,109510.0,109500.0,4e-05]
[1748014725025,1.40097291,109510.0,109500.0,4e-05]
[1748014725621,1.02807291,109510.0,109500.0,4e-05]
[1748014726650,1.02807291,109510.0,109500.0,0.27372]
[1748014727649,1.01353206,109510.0,109500.0,0.27372]
[1748014727863,0.98173206,109510.0,109500.0,0.27372]
[1748014728053,1.01313206,109510.0,109500.0,0.27376]
[1748014728450,1.14949442,109510.0,109500.0,4e-05]
[1748014728866,1.04997291,109510.0,109500.0,4e-05]
[1748014730663,0.97173206,109510.0,109500.0,4e-05]
[1748014731099,1.00373206,109510.0,109500.0,4e-05]
[1748014731273,1.03463206,109510.0,109500.0,4e-05]
[1748014731705,1.04917291,109510.0,109500.0,4e-05]
[1748014733830,0.79301085,109510.0,109500.0,4e-05]
[1748014734673,0.36097291,109510.0,109500.0,4e-05]
[1748014738574,1.15301085,109510.0,109500.0,4e-05]
[1748014738737,1.41673085,109510.0,109500.0,4e-05]
[1748014738941,1.40673085,109510.0,109500.0,4e-05]
[1748014739211,1.49625236,109510.0,109500.0,4e-05]
[1748014739721,1.49525236,109510.0,109500.0,4e-05]
[1748014739935,1.78172124,109510.0,109500.0,4e-05]
[1748014740152,1.79072124,109510.0,109500.0,4e-05]
[1748014740559,1.78672124,109510.0,109500.0,4e-05]
[1748014740983,1.80343,109510.0,109500.0,4e-05]
[1748014741190,1.44317659,109510.0,109500.0,4e-05]
[1748014741832,0.70514082,109510.0,109500.0,4e-05]
[1748014742045,0.67424082,109510.0,109500.0,4e-05]
[1748014742272,0.29053206,109510.0,109500.0,4e-05]
[1748014742621,0.28553206,109510.0,109500.0,4e-05]
[1748014742835,0.68682632,109510.0,109500.0,4e-05]
[1748014743030,1.51982537,109510.0,109500.0,4e-05]
[1748014743208,1.16257196,109510.0,109500.0,4e-05]
[1748014744080,1.17394006,109510.0,109500.0,4e-05]
[1748014746148,1.53419347,109510.0,109500.0,4e-05]
[1748014746353,1.63015347,109510.0,109500.0,4e-05]
[1748014747714,1.26990006,109510.0,109500.0,4e-05]
[1748014747921,1.63015347,109510.0,109500.0,4e-05]
[1748014749687,1.67487347,109510.0,109500.0,4e-05]
[1748014749898,1.70227847,109510.0,109500.0,4e-05]
[1748014751304,0.21552692,109460.0,109450.0,0.01330071]
[1748014751528,0.7548474,109460.0,109450.0,0.01330071]
[1748014751750,0.66532589,109460.0,109450.0,0.01330071]
[1748014752751,0.69662589,109460.0,109450.0,0.02233007]
[1748014752957,0.69662589,109460.0,109450.0,0.02433007]
[1748014753163,0.7075556,109460.0,109450.0,0.02433007]
[1748014753795,0.7075556,109460.0,109450.0,0.02333007]
[1748014753998,0.79707711,109460.0,109450.0,0.01480585]
[1748014754208,1.14707711,109460.0,109450.0,0.01480585]
[1748014754419,1.17917711,109460.0,109450.0,0.00150514]
[1748014754631,1.17917711,109460.0,109450.0,0.00050514]
[1748014755714,1.18017711,109460.0,109450.0,0.00050514]
[1748014755951,1.0182556,109460.0,109450.0,0.00050514]
[1748014756995,1.0495556,109460.0,109450.0,0.00050514]
[1748014757952,0.65800219,109460.0,109450.0,0.06360514]
[1748014758132,0.64707248,109460.0,109450.0,0.06360514]
[1748014758761,0.64707248,109460.0,109450.0,0.03070514]
[1748014759208,0.64707248,109460.0,109410.0,0.1221061]
[1748014759209,0.2193368,109420.0,109410.0,0.1221061]
[1748014759415,0.2193368,109420.0,109410.0,3.0664273]
[1748014759622,0.02741577,109420.0,109410.0,3.07478897]
[1748014759763,0.21019771,109420.0,109410.0,3.09243389]
[1748014759982,0.2193368,109420.0,109410.0,3.08329455]
[1748014760350,0.21019846,109420.0,109410.0,2.35568285]
[1748014760556,0.19192103,109420.0,109410.0,0.99417285]
[1748014760803,0.19192103,109420.0,109410.0,0.65417285]
[1748014761189,0.19192103,109420.0,109410.0,0.65817285]
[1748014761385,0.62146659,109420.0,109410.0,0.01801285]
[1748014761601,0.61546659,109420.0,109410.0,0.01801285]
[1748014762005,0.61546659,109420.0,109410.0,0.01001285]
[1748014762184,0.61546659,109420.0,109410.0,0.01401285]
[1748014762387,0.61546659,109420.0,109410.0,0.01801285]
[1748014762592,0.61546659,109420.0,109410.0,0.01401285]
[1748014762797,0.61546659,109420.0,109410.0,0.01001285]
[1748014763387,0.63000744,109420.0,109410.0,0.01001285]
[1748014763959,0.69320744,109420.0,109410.0,0.01001285]
[1748014764186,0.66000744,109420.0,109410.0,0.00901285]
[1748014764764,0.68124015,109420.0,109410.0,0.00901285]
[1748014764968,0.61546659,109420.0,109410.0,0.00901285]
[1748014765248,0.61546659,109420.0,109410.0,0.70835285]
[1748014765457,0.52592103,109420.0,109410.0,0.70835285]
[1748014766301,0.00913834,109420.0,109410.0,1.90577068]
[1748014766510,0.21933647,109420.0,109410.0,1.89763192]
[1748014766658,0.03655453,109420.0,109410.0,1.91591069]
[1748014766846,0.04569354,109420.0,109410.0,1.96527135]
[1748014767050,0.21017899,109430.0,109420.0,0.25042103]
[1748014767239,0.20104132,109430.0,109420.0,1.50379398]
[1748014767469,0.1919034,109430.0,109420.0,0.29374498]
[1748014767836,0.1919034,109430.0,109420.0,0.49480502]
[1748014768133,0.1919029,109430.0,109420.0,0.51671107]
[1748014768344,0.21931725,109430.0,109420.0,0.58485008]
[1748014768561,0.21931725,109430.0,109420.0,0.58421749]
[1748014768766,0.21017958,109430.0,109420.0,1.34347106]
[1748014768973,0.20104166,109430.0,109420.0,1.23809206]
[1748014769142,0.20104166,109430.0,109420.0,0.48120906]
[1748014769353,0.20104166,109430.0,109420.0,1.23366006]
[1748014769553,0.20104166,109430.0,109420.0,1.12148906]
[1748014769762,0.20104166,109430.0,109420.0,1.24981706]
[1748014769966,0.20104166,109430.0,109420.0,1.26413406]
[1748014770159,0.20104166,109430.0,109420.0,0.08680906]
[1748014770359,0.20104166,109430.0,109420.0,1.53855346]
[1748014770548,0.00913767,109430.0,109420.0,1.49554643]
[1748014770910,0.219317,109430.0,109420.0,1.35268706]
[1748014771112,0.20104149,109430.0,109420.0,1.12060906]
[1748014771329,0.20104149,109430.0,109420.0,1.470158]
[1748014771538,0.21931701,109430.0,109420.0,1.49757428]
[1748014771730,0.21931701,109430.0,109420.0,1.48843577]
[1748014771931,0.01827593,109430.0,109420.0,1.49757444]
[1748014772138,0.01827543,109430.0,109420.0,1.50671295]
[1748014772278,0.21931676,109430.0,109420.0,1.58712]
[1748014772463,0.03655153,109430.0,109420.0,1.59625851]
[1748014772667,0.21931676,109430.0,109420.0,1.58712]
[1748014772860,0.01827543,109430.0,109420.0,1.58712]
[1748014773061,0.21931692,109430.0,109420.0,1.60497434]
[1748014773308,0.21931692,109430.0,109420.0,1.59583575]
[1748014773309,0.22845518,109430.0,109420.0,1.59583575]
[1748014773508,0.21931759,109430.0,109420.0,1.59583575]
[1748014773945,0.21017975,109430.0,109420.0,1.58669708]
[1748014774668,0.21017975,109430.0,109420.0,1.59583575]
[1748014775170,0.21017975,109430.0,109420.0,1.58712]
[1748014775726,0.21017975,109430.0,109420.0,1.57798133]
[1748014775987,0.19190349,109430.0,109420.0,1.01349606]
[1748014776280,0.18276523,109430.0,109420.0,1.31253009]
[1748014776485,0.18276523,109430.0,109420.0,1.50585309]
[1748014777085,0.18276523,109430.0,109420.0,0.67369206]
[1748014777292,0.18276523,109430.0,109420.0,1.28076306]
[1748014777447,0.18276523,109430.0,109420.0,1.12020906]
[1748014778055,0.18276523,109430.0,109420.0,1.26182806]
[1748014778472,0.18276523,109430.0,109420.0,1.23756306]
[1748014778702,0.18276523,109430.0,109420.0,1.12020906]
[1748014779935,0.18276523,109430.0,109420.0,1.41889006]
[1748014781179,0.18276523,109430.0,109420.0,1.14501006]
[1748014781419,0.18276523,109430.0,109420.0,1.41885006]
[1748014782458,0.18276523,109430.0,109420.0,1.19754706]
[1748014783414,0.18276523,109430.0,109420.0,0.55774706]
[1748014783654,0.18276523,109430.0,109420.0,1.06196906]
[1748014784010,0.18276523,109430.0,109420.0,1.48623606]
[1748014784640,0.18276523,109430.0,109420.0,1.51413606]
[1748014785254,0.18276523,109430.0,109420.0,1.85413606]
[1748014786517,0.18276523,109430.0,109420.0,1.82623606]
[1748014787229,0.18276523,109430.0,109420.0,1.40196906]
[1748014787374,0.18276523,109430.0,109420.0,1.63016406]
[1748014788739,0.18276523,109430.0,109420.0,1.12812906]
[1748014788984,0.18276523,109430.0,109420.0,1.40196906]
[1748014789125,0.18276523,109430.0,109420.0,1.06196906]
[1748014789323,0.21326523,109430.0,109420.0,1.40196906]
[1748014789951,0.21326523,109430.0,109420.0,1.12812906]
[1748014790167,0.35390756,109430.0,109420.0,0.78812906]
[1748014790382,0.33521079,109430.0,109420.0,1.06196906]
[1748014790532,0.18276523,109430.0,109420.0,1.06196906]
[1748014791635,0.18276523,109430.0,109420.0,1.05346298]
[1748014792811,0.24686523,109430.0,109420.0,1.05350298]
[1748014792984,0.33641079,109430.0,109420.0,1.05350298]
[1748014793330,0.33641079,109430.0,109420.0,1.0620324]
[1748014794242,0.18276523,109430.0,109420.0,1.0620324]
[1748014796178,0.18276523,109430.0,109420.0,1.05350298]
[1748014796392,0.37376474,109430.0,109420.0,0.006]
[1748014796621,0.38830559,109430.0,109420.0,0.006]
[1748014796827,0.748559,109430.0,109420.0,0.006]
[1748014797157,0.38830559,109430.0,109420.0,0.006]
[1748014797344,0.38830559,109430.0,109410.0,0.27538677]
[1748014797553,0.34316643,109420.0,109410.0,0.27538677]
[1748014797773,0.34216643,109420.0,109410.0,0.27538677]
[1748014797980,0.34216643,109420.0,109410.0,0.28392673]
[1748014799279,0.34316643,109420.0,109410.0,0.28392673]
[1748014799478,0.28146643,109420.0,109410.0,0.28392673]
[1748014800311,0.28346643,109420.0,109410.0,0.28392673]
[1748014800512,0.28246643,109420.0,109410.0,0.28392673]
[1748014800726,0.19092087,109420.0,109410.0,0.28392673]
[1748014801072,0.19192087,109420.0,109410.0,0.28392673]
[1748014803120,0.19192087,109420.0,109410.0,0.62392673]
[1748014803799,0.19192087,109420.0,109410.0,0.64588677]
[1748014804300,0.19192087,109420.0,109410.0,1.00978677]
[1748014804499,0.19192087,109420.0,109410.0,2.15271977]
[1748014804702,0.19192087,109420.0,109410.0,1.86919977]
[1748014804945,0.19192087,109420.0,109410.0,1.77950077]
[1748014805147,0.19192087,109420.0,109410.0,1.18314077]
[1748014805276,0.19092087,109420.0,109410.0,1.16854677]
[1748014805700,0.19092087,109420.0,109410.0,0.73790677]
[1748014805900,0.19092087,109420.0,109410.0,1.20692677]
[1748014806105,0.19092087,109420.0,109410.0,1.20992677]
[1748014807121,0.19092087,109420.0,109410.0,0.74090677]
[1748014807377,0.19092087,109420.0,109410.0,1.38042677]
[1748014808924,0.22102087,109420.0,109410.0,1.38038677]
[1748014810281,0.34136643,109420.0,109410.0,0.40090677]
[1748014810478,0.34136643,109420.0,109410.0,1.04038677]
[1748014811050,0.34136643,109420.0,109410.0,0.76650677]
[1748014811253,0.34136643,109420.0,109410.0,1.04892]
[1748014811933,0.34136643,109420.0,109410.0,1.04896]
[1748014819439,0.34136643,109420.0,109410.0,0.77504]
[1748014819589,0.34136643,109420.0,109410.0,1.04896]
[1748014819805,0.8045992,109420.0,109410.0,0.01504]
[1748014819991,0.8045992,109420.0,109410.0,0.00650677]
[1748014820735,0.44434579,109420.0,109410.0,0.00350677]
[1748014820936,0.44434579,109420.0,109410.0,0.00150677]
[1748014821145,0.36190728,109420.0,109410.0,0.00150677]
[1748014821508,0.34736643,109420.0,109410.0,0.27542677]
[1748014821923,0.34736643,109420.0,109410.0,0.28396237]
[1748014822167,0.34436643,109420.0,109410.0,0.28396237]
[1748014822335,0.34336643,109420.0,109410.0,0.28396237]
[1748014822764,0.34436643,109420.0,109410.0,0.28396237]
[1748014823119,0.34436643,109420.0,109410.0,0.01004237]
[1748014823324,0.34436643,109420.0,109410.0,0.28396237]
[1748014824294,0.34436643,109420.0,109410.0,0.28296237]
[1748014824512,0.34436643,109420.0,109410.0,0.27442677]
[1748014824711,0.34436643,109420.0,109410.0,0.00050677]
[1748014825076,0.34436643,109420.0,109410.0,0.27442677]
[1748014826521,0.35890728,109420.0,109410.0,0.27442677]
[1748014829064,0.34436643,109420.0,109410.0,0.27442677]
[1748014829472,0.34436643,109420.0,109410.0,0.28296197]
[1748014831727,0.31356643,109420.0,109410.0,0.28296197]
[1748014831912,0.28346643,109420.0,109410.0,0.28296197]
[1748014832161,0.31646643,109420.0,109410.0,0.00904197]
[1748014832374,0.20305971,109420.0,109410.0,1.45953797]
[1748014832597,0.20005971,109420.0,109410.0,2.06058141]
[1748014832822,0.18276523,109430.0,109420.0,0.40933909]
[1748014833078,0.18276523,109430.0,109420.0,1.86657146]
[1748014833293,0.18276523,109430.0,109420.0,1.74769133]
[1748014833517,0.18276523,109430.0,109420.0,0.89178046]
[1748014833738,0.18276523,109430.0,109420.0,0.90091947]
[1748014833956,0.18276523,109430.0,109420.0,1.09284034]
[1748014834426,0.18276523,109430.0,109420.0,0.89178046]
[1748014834605,0.18276523,109430.0,109420.0,0.98808949]
[1748014834898,0.18276523,109430.0,109420.0,0.99722834]
[1748014835148,0.18376523,109430.0,109420.0,0.99722834]
[1748014835553,0.18276523,109430.0,109420.0,0.99822834]
[1748014835731,0.18276523,109430.0,109420.0,0.15411646]
[1748014835929,0.18276523,109430.0,109420.0,0.01530446]
[1748014836340,0.18276523,109430.0,109420.0,0.18184246]
[1748014836548,0.18276523,109430.0,109420.0,1.55540246]
[1748014836996,0.18276523,109430.0,109420.0,1.7381844]
[1748014837201,0.18276523,109430.0,109420.0,1.58860246]
[1748014837558,0.01827434,109440.0,109430.0,0.61127926]
[1748014837794,0.01827393,109440.0,109430.0,1.92920793]
[1748014837963,0.03654843,109440.0,109430.0,1.92920793]
[1748014838165,0.21929696,109440.0,109430.0,1.92007026]
[1748014838375,0.21016012,109440.0,109430.0,1.8951125]
[1748014838820,0.21116012,109440.0,109430.0,1.90425034]
[1748014839191,0.21216012,109440.0,109430.0,1.91338801]
[1748014839363,0.21216012,109440.0,109430.0,2.25056758]
[1748014839714,0.20302312,109440.0,109430.0,2.18361158]
[1748014840267,0.20302312,109440.0,109430.0,2.20188718]
[1748014840509,0.002,109440.0,109430.0,2.30057041]
[1748014840722,0.01826791,109480.0,109470.0,0.34]
[1748014841017,0.01826791,109480.0,109470.0,2.2751842]
[1748014841018,0.20094951,109480.0,109470.0,2.2751842]
[1748014841236,0.0274005,109480.0,109470.0,2.35175311]
[1748014841493,0.01826683,109480.0,109470.0,2.35175311]
[1748014841663,0.21921634,109480.0,109470.0,2.43216434]
[1748014841899,0.21921709,109480.0,109470.0,2.44129884]
[1748014842092,0.21921709,109480.0,109470.0,2.43188679]
[1748014842340,0.20094984,109480.0,109470.0,2.2322218]
[1748014842550,0.20094984,109480.0,109470.0,2.2342218]
[1748014842758,0.20094984,109480.0,109470.0,2.25688054]
[1748014842936,0.20094984,109480.0,109470.0,2.07418209]
[1748014843113,0.19181584,109480.0,109470.0,2.07418209]
[1748014843468,0.19181584,109480.0,109470.0,2.26801546]
[1748014843682,0.19181584,109480.0,109470.0,2.08531701]
[1748014843880,0.19181584,109480.0,109470.0,2.27715029]
[1748014844430,0.18268176,109480.0,109470.0,2.26801546]
[1748014844996,0.18268176,109480.0,109470.0,2.07602209]
[1748014845315,0.21006416,109490.0,109480.0,0.53181584]
[1748014845594,0.20093133,109490.0,109480.0,1.92040008]
[1748014845805,0.18276097,109500.0,109480.0,1.941266]
[1748014846013,0.18276097,109500.0,109490.0,0.981203]
[1748014846214,0.18276097,109500.0,109490.0,0.97892]
[1748014846564,0.24516097,109500.0,109490.0,0.34]
[1748014846766,0.24516097,109500.0,109490.0,0.97884]
[1748014847375,0.19181568,109480.0,109470.0,0.75462009]
[1748014847574,0.19181568,109480.0,109470.0,1.49932709]
[1748014847952,0.19181568,109480.0,109470.0,0.36022009]
[1748014848158,0.02741084,109440.0,109430.0,0.1389]
[1748014848361,0.01827359,109440.0,109430.0,6.17226331]
[1748014848587,0.00913667,109440.0,109430.0,6.18140157]
[1748014848799,0.01627359,109440.0,109430.0,6.52140157]
[1748014849131,0.00713667,109440.0,109430.0,6.52140157]
[1748014849341,0.00913684,109440.0,109430.0,6.53006782]
[1748014849858,0.00913567,109460.0,109450.0,0.21014086]
[1748014850069,0.18274414,109470.0,109460.0,0.34]
[1748014850288,0.18274414,109470.0,109460.0,0.743763]
[1748014851010,0.18274414,109470.0,109450.0,0.37413659]
[1748014851011,0.2192767,109450.0,109440.0,0.34]
[1748014851229,0.2192767,109450.0,109440.0,2.32345578]
[1748014851400,0.2152767,109450.0,109440.0,2.33259304]
[1748014851747,0.2152767,109450.0,109440.0,2.34126122]
[1748014851929,0.2152767,109450.0,109440.0,2.35039822]
[1748014852135,0.19700477,109450.0,109440.0,2.31384971]
[1748014852337,0.19700477,109450.0,109440.0,1.80769871]
[1748014852726,0.19700477,109450.0,109440.0,1.81683613]
[1748014852907,0.19700477,109450.0,109440.0,1.18717338]
[1748014853092,0.19700477,109450.0,109440.0,1.82597338]
[1748014853303,0.18786843,109450.0,109440.0,1.82897338]
[1748014853503,0.18273184,109450.0,109440.0,1.62795018]
[1748014853709,0.18273184,109450.0,109440.0,1.63295018]
[1748014853908,0.18273184,109450.0,109440.0,1.6420876]
[1748014854107,0.01827134,109460.0,109440.0,1.93265503]
[1748014854313,0.20098607,109460.0,109450.0,0.75482463]
[1748014854546,0.20098607,109460.0,109450.0,0.75254084]
[1748014854751,0.20098607,109460.0,109450.0,0.76167734]
[1748014855194,0.19185073,109460.0,109450.0,0.76167734]
[1748014855407,0.19185073,109460.0,109450.0,0.569809]
[1748014855408,0.18271514,109460.0,109450.0,0.569809]
[1748014856462,0.18271514,109460.0,109450.0,0.76167743]
[1748014856664,0.18271514,109460.0,109450.0,0.77081385]
[1748014856887,0.18271514,109460.0,109450.0,0.78395019]
[1748014857087,0.17671514,109460.0,109450.0,0.58294559]
[1748014857472,0.17671514,109460.0,109450.0,0.76567743]
[1748014857685,0.17671514,109460.0,109450.0,0.58294559]
[1748014858084,0.17671514,109460.0,109450.0,0.78349771]
[1748014858897,0.18274414,109470.0,109460.0,0.34]
[1748014859175,0.18274414,109470.0,109460.0,0.9788]
[1748014859605,0.18274414,109470.0,109460.0,1.961359]
[1748014860023,0.18274414,109470.0,109460.0,1.869746]
[1748014860222,0.18274414,109470.0,109460.0,1.80147]
[1748014860429,0.18274414,109470.0,109460.0,1.80247]
[1748014860570,0.19187897,109470.0,109460.0,2.00345639]
[1748014860778,0.20101389,109470.0,109460.0,2.00345656]
[1748014861261,0.20101389,109470.0,109460.0,1.80247]
[1748014861463,0.20101389,109470.0,109460.0,1.81116703]
[1748014861633,0.20101389,109470.0,109460.0,1.19867003]
[1748014861888,0.20101389,109470.0,109460.0,1.13073903]
[1748014861889,0.23231389,109470.0,109460.0,1.13073903]
[1748014862140,0.26491389,109470.0,109460.0,0.37569703]
[1748014862349,0.35445945,109470.0,109460.0,0.64949703]
[1748014862768,0.35445945,109470.0,109460.0,0.6408]
[1748014863170,0.35445945,109470.0,109460.0,0.6388]
[1748014866841,0.35445945,109470.0,109460.0,0.365]
[1748014867053,0.20100443,109450.0,109440.0,0.34]
[1748014867273,0.26280443,109450.0,109440.0,0.63836]
[1748014867484,0.25368578,109440.0,109430.0,0.4157138]
[1748014867680,0.25368578,109440.0,109430.0,1.0540738]
[1748014867681,0.34323134,109440.0,109430.0,1.0540738]
[1748014867890,0.19188578,109440.0,109430.0,1.9243458]
[1748014868091,0.19188578,109440.0,109430.0,1.4414378]
[1748014868303,0.19188578,109440.0,109430.0,1.4076178]
[1748014868529,0.19188578,109440.0,109430.0,1.41634149]
[1748014868786,0.22288578,109440.0,109430.0,1.41634149]
[1748014868934,0.22288578,109440.0,109430.0,1.16669349]
[1748014868935,0.25518578,109440.0,109430.0,1.16669349]
[1748014869132,0.25318578,109440.0,109430.0,1.16669349]
[1748014869531,0.25318578,109440.0,109430.0,1.17069349]
[1748014869731,0.24718578,109440.0,109430.0,1.16669349]
[1748014870144,0.24718578,109440.0,109430.0,1.17069349]
[1748014870382,0.18276523,109430.0,109420.0,0.49076366]
[1748014870620,0.21017867,109430.0,109420.0,2.34738725]
[1748014870874,0.1919034,109430.0,109420.0,0.86484576]
[1748014871070,0.2544034,109430.0,109420.0,0.72473676]
[1748014871575,0.2544034,109430.0,109420.0,0.99853676]
[1748014871706,0.2544034,109430.0,109420.0,0.99857676]
[1748014871905,0.2222034,109430.0,109420.0,0.99857676]
[1748014872116,0.1919034,109430.0,109420.0,0.99857676]
[1748014872352,0.1919034,109430.0,109420.0,1.00157676]
[1748014872884,0.1919034,109430.0,109420.0,0.99857676]
[1748014873236,0.2549034,109430.0,109420.0,1.00257676]
[1748014873445,0.2549034,109430.0,109420.0,0.99957676]
[1748014873743,0.2549034,109430.0,109420.0,1.00157676]
[1748014874590,0.2549034,109430.0,109420.0,0.36317676]
[1748014874768,0.2549034,109430.0,109420.0,1.00161676]
[1748014874969,0.2549034,109430.0,109420.0,0.38777676]
[1748014875245,0.38751415,109430.0,109420.0,0.27699194]
[1748014875433,0.38751415,109430.0,109420.0,0.00315194]
[1748014875434,0.76230841,109430.0,109420.0,0.00315194]
[1748014875981,0.76230841,109430.0,109420.0,0.00115194]
[1748014876179,0.76230841,109430.0,109400.0,0.66848]
[1748014876180,0.26337791,109410.0,109400.0,0.66848]
[1748014876366,0.35292347,109410.0,109400.0,0.66848]
[1748014876565,0.35292347,109410.0,109400.0,0.67699136]
[1748014877223,0.36746432,109410.0,109400.0,0.67699136]
[1748014877396,0.7636598,109410.0,109400.0,0.03855136]
[1748014877594,0.72771773,109410.0,109400.0,0.03004]
[1748014879037,0.72971773,109410.0,109400.0,0.03004]
[1748014879450,0.73171773,109410.0,109400.0,0.03004]
[1748014879840,0.38071405,109410.0,109400.0,0.03004]
[1748014881224,1.06891405,109410.0,109400.0,0.03004]
[1748014882387,1.76916746,109410.0,109400.0,0.03004]
[1748014882607,1.44122087,109410.0,109400.0,0.03004]
[1748014883021,1.08096746,109410.0,109400.0,0.03004]
[1748014883648,1.07896746,109410.0,109400.0,0.03004]
[1748014884169,1.07996746,109410.0,109400.0,0.03004]
[1748014884569,1.45322087,109410.0,109400.0,0.03004]
[1748014885154,1.45322087,109410.0,109370.0,0.75908]
[1748014885155,0.27707392,109380.0,109370.0,0.75908]
[1748014885332,0.2534086,109370.0,109360.0,0.27396]
[1748014885536,0.34295416,109370.0,109360.0,0.27396]
[1748014886493,0.01828554,109370.0,109360.0,1.43376529]
[1748014886716,0.21943775,109370.0,109360.0,2.10095703]
[1748014886889,0.21029498,109370.0,109360.0,2.47155711]
[1748014887090,0.21029498,109370.0,109360.0,2.49945703]
[1748014887364,0.21943692,109370.0,109360.0,2.49878353]
[1748014887504,0.21943692,109370.0,109360.0,2.50792739]
[1748014887711,0.02742823,109370.0,109360.0,2.51707116]
[1748014887918,0.21943692,109370.0,109360.0,2.50792705]
[1748014888107,0.21943692,109370.0,109360.0,2.50892705]
[1748014888518,0.21943767,109370.0,109360.0,2.43450498]
[1748014888721,0.21943767,109370.0,109360.0,2.44364867]
[1748014889146,0.87104878,109380.0,109370.0,0.5920086]
[1748014889147,0.89847484,109380.0,109370.0,0.5920086]
[1748014889374,0.20113307,109380.0,109370.0,1.70704993]
[1748014889604,0.20113307,109380.0,109370.0,0.99210924]
[1748014889844,0.23323307,109380.0,109370.0,0.99210924]
[1748014890036,0.23323307,109380.0,109370.0,1.00057943]
[1748014890785,0.23523307,109380.0,109370.0,1.00057943]
[1748014890983,0.20313307,109380.0,109370.0,1.00057943]
[1748014891191,0.20313307,109380.0,109370.0,1.53283493]
[1748014891382,0.20313307,109380.0,109370.0,1.34996943]
[1748014891937,0.20313307,109380.0,109370.0,1.26965643]
[1748014892069,0.20313307,109380.0,109370.0,0.36177943]
[1748014892271,0.20213307,109380.0,109370.0,1.00061943]
[1748014892497,0.20113307,109380.0,109370.0,0.36177943]
[1748014892710,0.26433307,109380.0,109370.0,1.00061943]
[1748014893122,0.26433307,109380.0,109370.0,0.36177943]
[1748014893350,0.26433307,109380.0,109370.0,0.66025943]
[1748014893584,0.26433307,109380.0,109370.0,0.02177943]
[1748014893772,0.26433307,109380.0,109370.0,0.66125943]
[1748014893977,0.35387863,109380.0,109370.0,0.66125943]
[1748014894174,0.34285693,109380.0,109370.0,0.66125943]
[1748014894376,0.33012221,109380.0,109370.0,0.66125943]
[1748014894608,0.33012221,109380.0,109370.0,0.02277943]
[1748014894609,0.34466306,109380.0,109370.0,0.02277943]
[1748014894947,0.24839894,109350.0,109340.0,0.37779138]
[1748014895215,0.24839894,109350.0,109340.0,0.01381815]
[1748014895437,0.30213374,109350.0,109340.0,0.01381815]
[1748014895635,0.30213374,109350.0,109340.0,0.99229815]
[1748014895847,0.30213374,109350.0,109340.0,0.65229815]
[1748014896061,0.19207885,109330.0,109310.0,0.61399373]
[1748014896274,0.18294914,109320.0,109310.0,0.70369135]
[1748014896487,0.18294914,109320.0,109310.0,5.59343735]
[1748014896642,0.20124379,109320.0,109310.0,3.65043644]
[1748014896849,0.20124379,109320.0,109310.0,3.2859567]
[1748014897055,0.20124379,109320.0,109310.0,2.9462287]
[1748014897250,0.20124379,109320.0,109310.0,3.22937682]
[1748014897463,0.20124379,109320.0,109310.0,3.23852486]
[1748014897652,0.19524379,109320.0,109310.0,3.24722353]
[1748014897860,0.18609659,109320.0,109310.0,2.89999673]
[1748014898062,0.17694914,109320.0,109310.0,0.98442273]
[1748014898227,0.17694914,109320.0,109310.0,1.25842273]
[1748014898433,0.17694914,109320.0,109310.0,1.26142273]
[1748014898722,0.17694914,109320.0,109310.0,1.26442273]
[1748014898934,0.17694914,109320.0,109310.0,1.33042273]
[1748014899138,0.17694914,109320.0,109310.0,1.53676273]
[1748014899849,0.20694914,109320.0,109310.0,1.53676273]
[1748014900111,0.20694914,109320.0,109310.0,1.53376273]
[1748014900325,0.20694914,109320.0,109310.0,1.51562873]
[1748014900544,0.20694914,109320.0,109310.0,1.51462873]
[1748014900948,0.20694914,109320.0,109310.0,1.51666873]
[1748014901151,0.17694914,109320.0,109310.0,1.51666873]
[1748014901362,0.17694914,109320.0,109310.0,1.6996346]
[1748014901570,0.17694914,109320.0,109310.0,1.51666873]
[1748014902187,0.17694914,109320.0,109310.0,1.1042262]
[1748014903040,0.17694914,109320.0,109310.0,1.29634036]
[1748014903352,0.17694914,109320.0,109310.0,1.1042262]
[1748014903702,0.18294914,109320.0,109310.0,0.34506773]
[1748014903904,0.0365883,109320.0,109310.0,0.35421552]
[1748014904108,0.0365883,109320.0,109310.0,1.33285552]
[1748014904322,0.1829324,109330.0,109320.0,0.5231207]
[1748014904323,0.18287714,109330.0,109320.0,0.5231207]
[1748014904515,0.18287714,109330.0,109320.0,1.26442856]
[1748014904725,0.18287714,109330.0,109320.0,1.4473777]
[1748014905047,0.21037183,109330.0,109320.0,1.45652498]
[1748014905789,0.21037183,109330.0,109320.0,1.26442856]
[1748014906012,0.19207885,109330.0,109320.0,1.12393856]
[1748014906231,0.22267885,109330.0,109320.0,1.084217]
[1748014906685,0.22267885,109330.0,109320.0,0.97868]
[1748014906898,0.18294914,109320.0,109310.0,0.559557]
[1748014907100,0.18294914,109320.0,109310.0,2.83228956]
[1748014907601,0.21953794,109320.0,109310.0,2.29090456]
[1748014907781,0.21953794,109320.0,109310.0,2.29941819]
[1748014908199,0.03658847,109320.0,109310.0,2.31056589]
[1748014908406,0.03658847,109320.0,109310.0,2.31256589]